bitfinex-derivatives/quotes_BTCF0:USTF0_20210708
["timestamp","ask_amount","ask_price","bid_price","bid_amount"]
[1625741890229,1.20682946,32474.0,32464.0,1.2670105]
[1625741890529,1.2061261,32475.0,32463.0,1.26628006]
[1625741891130,1.37920905,32476.0,32463.0,1.26628006]
[1625741891131,1.20570866,32474.0,32463.0,1.26628006]
[1625741891580,1.20570866,32474.0,32462.0,1.26626386]
[1625741891881,1.20631607,32475.0,32463.0,1.26616645]
[1625741892184,1.20596051,32474.0,32462.0,1.54219486]
[1625741892408,1.20566348,32473.0,32462.0,0.27599]
[1625741893614,1.20563253,32474.0,32462.0,0.27599]
[1625741893911,1.20536315,32473.0,32462.0,0.27599]
[1625741894061,1.20555222,32474.0,32462.0,1.54165882]
[1625741894360,1.20555222,32474.0,32462.0,0.27599]
[1625741894510,1.20487788,32475.0,32462.0,0.27599]
[1625741894811,1.20487788,32475.0,32462.0,1.54102918]
[1625741895562,1.20358041,32476.0,32462.0,1.54102918]
[1625741897365,1.20303099,32477.0,32463.0,1.26440668]
[1625741897514,1.20360061,32479.0,32465.0,1.26438526]
[1625741897814,1.20411161,32480.0,32466.0,1.76430387]
[1625741898114,0.0914,32481.0,32467.0,1.44477412]
[1625741898264,0.0914,32481.0,32468.0,1.94474182]
[1625741898413,1.46894841,32485.0,32468.0,1.94474182]
[1625741898565,0.0916,32485.0,32468.0,0.5]
[1625741898865,0.0916,32485.0,32468.0,1.94363422]
[1625741899016,0.0916,32485.0,32469.0,1.44359991]
[1625741899166,0.0001,32485.0,32470.0,0.5]
[1625741899617,0.0001,32485.0,32470.0,1.94356301]
[1625741899768,0.0001,32485.0,32471.0,1.44341031]
[1625741899917,0.0001,32485.0,32472.0,0.5]
[1625741900369,0.0001,32485.0,32472.0,1.94333569]
[1625741900666,0.0001,32485.0,32472.0,0.5]
[1625741900817,0.0001,32485.0,32469.0,1.85910265]
[1625741900967,0.0001,32485.0,32470.0,1.44200082]
[1625741901269,0.0001,32485.0,32470.0,1.94200082]
[1625741902318,1.37641544,32491.0,32470.0,1.94200082]
[1625741902469,2.30082625,32492.0,32470.0,1.94200082]
[1625741902620,0.9243,32492.0,32470.0,2.94200082]
[1625741902768,1.46914164,32493.0,32470.0,2.94200082]
[1625741902921,1.46914164,32493.0,32472.0,1.0]
[1625741903069,1.46914164,32493.0,32473.0,0.5]
[1625741903218,1.46914164,32493.0,32474.0,2.44063103]
[1625741903219,0.0936,32493.0,32474.0,2.44063103]
[1625741903369,1.3772801,32497.0,32475.0,0.5]
[1625741903534,0.0935,32496.0,32476.0,1.0]
[1625741903672,0.34879,32501.0,32480.0,1.4403902]
[1625741903989,1.37831578,32500.0,32477.0,1.44408098]
[1625741904121,1.39650174,32500.0,32477.0,1.44044397]
[1625741904427,0.01818749,32499.0,32477.0,1.44044397]
[1625741904572,1.3765249,32496.0,32473.0,1.44059894]
[1625741904732,1.37469361,32494.0,32470.0,1.43972385]
[1625741904876,1.62144361,32494.0,32470.0,1.43972385]
[1625741905023,1.37377398,32492.0,32468.0,1.43983134]
[1625741905171,0.0918,32491.0,32468.0,1.43983134]
[1625741905321,0.0918,32491.0,32467.0,1.43984321]
[1625741905623,1.37377398,32492.0,32467.0,1.43984321]
[1625741905771,0.24675,32494.0,32468.0,1.44032663]
[1625741905772,1.37391614,32491.0,32468.0,1.44032663]
[1625741906073,1.37391614,32491.0,32467.0,1.44028764]
[1625741907049,1.37391614,32491.0,32468.0,0.00363835]
[1625741907500,0.0935,32492.0,32469.0,1.43978967]
[1625741907800,0.0935,32492.0,32470.0,1.43978332]
[1625741907951,0.24675,32494.0,32471.0,1.4400666]
[1625741908099,1.37523181,32495.0,32471.0,1.9400666]
[1625741908250,2.31030646,32497.0,32473.0,1.4398894]
[1625741908399,1.37620646,32497.0,32474.0,0.5]
[1625741908555,1.37653882,32501.0,32476.0,1.43869405]
[1625741908700,1.37653882,32501.0,32477.0,0.5]
[1625741908850,1.37827119,32505.0,32480.0,1.43857676]
[1625741909002,1.37791,32504.0,32479.0,1.43859807]
[1625741909302,1.37754202,32503.0,32478.0,1.43865595]
[1625741909451,1.3778478,32504.0,32479.0,1.43859677]
[1625741910503,0.17228841,32495.0,32482.0,0.17988582]
[1625741910650,0.43371841,32495.0,32482.0,0.17988582]
[1625741910800,0.43371841,32495.0,32472.0,0.9701]
[1625741910801,0.43371841,32495.0,32481.0,0.17976756]
[1625741911251,0.43371841,32495.0,32480.0,0.17976885]
[1625741911554,0.17172924,32494.0,32480.0,0.17976885]
[1625741911851,0.43314315,32495.0,32480.0,0.17976885]
[1625741912154,0.26143,32495.0,32482.0,0.17977362]
[1625741912753,0.26143,32495.0,32481.0,0.17966759]
[1625741913053,0.26143,32495.0,32480.0,0.17966835]
[1625741913357,0.26143,32495.0,32469.0,1.0]
[1625741913358,0.26143,32495.0,32481.0,0.17966717]
[1625741913653,0.26143,32495.0,32482.0,0.17966659]
[1625741913803,0.17158802,32497.0,32482.0,0.39398659]
[1625741913954,0.17158802,32497.0,32482.0,0.21432]
[1625741914406,0.17158802,32497.0,32482.0,0.39401154]
[1625741914555,0.17157073,32499.0,32482.0,0.39401154]
[1625741914854,0.17157073,32499.0,32483.0,0.17957852]
[1625741915157,0.1715655,32500.0,32483.0,0.17957852]
[1625741915466,0.1715655,32500.0,32483.0,0.67957852]
[1625741915611,0.1715655,32500.0,32484.0,0.17960836]
[1625741916736,0.1715655,32500.0,32483.0,0.5]
[1625741916884,0.2642655,32500.0,32483.0,0.5]
[1625741917035,0.2642655,32500.0,32483.0,0.67950639]
[1625741917567,0.1715655,32500.0,32483.0,0.17950639]
[1625741917861,0.1715655,32500.0,32482.0,0.89384594]
[1625741918011,0.1715655,32500.0,32483.0,0.17952358]
[1625741918465,0.1715655,32500.0,32482.0,0.39376503]
[1625741918760,0.2635655,32500.0,32482.0,0.39376503]
[1625741919063,0.092,32500.0,32483.0,0.5]
[1625741919524,0.092,32500.0,32483.0,0.67944321]
[1625741919815,0.092,32500.0,32484.0,0.17947255]
[1625741919988,0.17142488,32502.0,32484.0,0.67947255]
[1625741920143,0.9968,32503.0,32484.0,0.67947255]
[1625741920144,1.16828512,32503.0,32485.0,0.17947092]
[1625741920291,1.16828512,32503.0,32486.0,0.5]
[1625741920429,0.9968,32503.0,32486.0,0.67946245]
[1625741920576,0.9968,32503.0,32486.0,0.5]
[1625741920727,0.17151103,32504.0,32486.0,0.5]
[1625741921766,0.17151103,32504.0,32486.0,0.67940841]
[1625741922241,0.17151103,32504.0,32486.0,0.17940841]
[1625741922393,0.17151103,32504.0,32487.0,0.5]
[1625741922973,0.17141081,32505.0,32487.0,0.5]
[1625741923268,0.17148174,32506.0,32487.0,0.67933008]
[1625741923418,0.17148174,32506.0,32487.0,0.5]
[1625741923719,0.17157779,32505.0,32487.0,0.67937361]
[1625741924096,0.17157779,32505.0,32487.0,0.5]
[1625741924922,1.11957144,32508.0,32487.0,0.5]
[1625741924923,0.17166698,32507.0,32487.0,0.6792944]
[1625741925228,0.17189105,32506.0,32488.0,0.00363616]
[1625741925985,0.17203445,32507.0,32488.0,0.182991]
[1625741926134,0.17203445,32507.0,32488.0,0.682991]
[1625741926425,0.17199722,32506.0,32488.0,0.682991]
[1625741926588,0.17199722,32506.0,32489.0,0.00363614]
[1625741926724,0.17199722,32506.0,32489.0,0.26825614]
[1625741926875,0.17199722,32506.0,32489.0,0.76825614]
[1625741927250,0.17199722,32506.0,32490.0,0.00363614]
[1625741927401,0.17185972,32507.0,32490.0,0.00363614]
[1625741927776,0.17196717,32506.0,32490.0,0.00363614]
[1625741928227,0.17197959,32507.0,32490.0,0.00363614]
[1625741929803,0.091,32508.0,32490.0,0.00363614]
[1625741929804,0.17200226,32506.0,32490.0,0.00363614]
[1625741930102,0.1719653,32507.0,32490.0,0.00363614]
[1625741932504,0.17197111,32506.0,32490.0,0.00363614]
[1625741933931,0.17197869,32507.0,32490.0,0.00363614]
[1625741934080,0.1719745,32506.0,32490.0,0.00363614]
[1625741935056,0.4080945,32506.0,32490.0,0.00363614]
[1625741935506,0.4080945,32506.0,32489.0,0.00363602]
[1625741935656,0.17191319,32505.0,32489.0,0.00363602]
[1625741935806,0.17191319,32505.0,32487.0,0.17940258]
[1625741935807,0.17191319,32505.0,32488.0,0.1830882]
[1625741935957,0.40808784,32506.0,32488.0,0.1830882]
[1625741936107,0.17191056,32504.0,32489.0,0.00363616]
[1625741936407,0.17193913,32505.0,32489.0,0.00363616]
[1625741936557,0.40812897,32506.0,32488.0,0.1830746]
[1625741936857,0.40812897,32506.0,32489.0,0.00363598]
[1625741937233,0.01817979,32505.0,32489.0,0.00363598]
[1625741937832,0.01817979,32505.0,32489.0,0.18315266]
[1625741938310,0.17206081,32504.0,32490.0,0.00363601]
[1625741938584,0.01817979,32505.0,32490.0,0.00363601]
[1625741938585,0.1902888,32505.0,32490.0,0.00363601]
[1625741938735,0.01817964,32503.0,32489.0,0.00363593]
[1625741939037,0.01817961,32504.0,32489.0,0.00363593]
[1625741939337,0.01818016,32502.0,32489.0,0.00363593]
[1625741939637,0.01818023,32503.0,32489.0,0.00363593]
[1625741939787,0.01818027,32501.0,32489.0,0.18324872]
[1625741939937,0.0925,32500.0,32489.0,0.18324872]
[1625741940090,0.0925,32500.0,32490.0,0.0036361]
[1625741940918,0.0925,32500.0,32489.0,0.09344453]
[1625741941218,0.0925,32500.0,32491.0,0.00363608]
[1625741941525,0.0925,32500.0,32490.0,0.00363608]
[1625741941672,0.01818133,32499.0,32490.0,0.00363608]
[1625741941821,0.01818133,32499.0,32492.0,0.00363627]
[1625741942120,1.29806631,32504.0,32490.0,0.00363663]
[1625741942121,0.25800547,32500.0,32490.0,0.00363663]
[1625741942421,0.01818332,32499.0,32486.0,0.00363666]
[1625741942725,0.01818332,32499.0,32491.0,0.00363662]
[1625741943022,0.01818332,32499.0,32487.0,0.00363665]
[1625741943176,0.01818332,32499.0,32492.0,0.00363659]
[1625741943473,0.01818332,32499.0,32487.0,0.09350818]
[1625741943624,0.01818332,32499.0,32487.0,0.2732729]
[1625741943784,0.01818332,32499.0,32488.0,0.00363661]
[1625741944600,0.01818332,32499.0,32488.0,0.27345622]
[1625741945127,0.01818332,32499.0,32489.0,0.00363666]
[1625741945355,0.27647061,32499.0,32489.0,0.00363666]
[1625741945653,0.01818382,32498.0,32488.0,0.00363676]
[1625741946403,0.27638917,32498.0,32488.0,0.00363676]
[1625741946555,0.25834918,32496.0,32488.0,0.00363676]
[1625741946703,0.48773918,32496.0,32487.0,0.00363706]
[1625741947003,0.01818557,32495.0,32487.0,0.00363706]
[1625741947532,0.10435516,32495.0,32486.0,0.00363718]
[1625741947831,0.10435516,32495.0,32488.0,0.00363729]
[1625741947984,0.01818557,32495.0,32488.0,0.00363729]
[1625741948132,0.01818569,32494.0,32487.0,0.09368492]
[1625741948282,0.01818569,32494.0,32489.0,0.00363722]
[1625741948584,0.01818569,32494.0,32487.0,0.00363722]
[1625741948585,0.0925,32494.0,32487.0,0.00363722]
[1625741948882,0.01818611,32493.0,32487.0,0.00363722]
[1625741949485,0.0936,32492.0,32484.0,0.27029442]
[1625741949785,0.27657348,32493.0,32485.0,0.09011403]
[1625741949945,0.01818593,32491.0,32485.0,0.00363719]
[1625741950085,0.01818629,32492.0,32484.0,0.27031028]
[1625741950236,0.27646556,32492.0,32483.0,0.27035035]
[1625741950539,0.08617401,32490.0,32483.0,0.09011678]
[1625741950686,0.25825491,32489.0,32481.0,1.20539936]
[1625741950836,0.54701491,32489.0,32481.0,1.20539936]
[1625741950986,0.56520262,32489.0,32481.0,1.20539936]
[1625741951137,0.08613012,32488.0,32481.0,1.20539936]
[1625741951287,0.08613012,32488.0,32481.0,0.27049936]
[1625741951736,0.25824089,32488.0,32481.0,0.09016645]
[1625741951887,0.25824089,32488.0,32481.0,0.2705247]
[1625741952188,0.25824089,32488.0,32481.0,0.09016645]
[1625741952338,0.25824089,32488.0,32480.0,0.27054212]
[1625741952644,0.08617254,32485.0,32480.0,0.0901811]
[1625741952941,0.25834145,32485.0,32479.0,0.27075663]
[1625741953241,0.08615747,32484.0,32479.0,0.09025279]
[1625741953390,0.25828109,32484.0,32478.0,0.27076852]
[1625741954366,0.08613805,32483.0,32478.0,0.09025722]
[1625741954667,0.25831701,32481.0,32477.0,0.09033078]
[1625741954817,0.0934,32480.0,32477.0,0.09033078]
[1625741955117,0.0934,32480.0,32476.0,0.27099396]
[1625741955267,0.54646701,32481.0,32476.0,0.27099396]
[1625741955419,0.54646701,32481.0,32477.0,0.27099238]
[1625741955645,0.374313,32481.0,32477.0,0.09033079]
[1625741955946,0.54642199,32481.0,32476.0,0.2709566]
[1625741956094,0.25819159,32480.0,32476.0,0.09031994]
[1625741956243,0.35099159,32480.0,32476.0,0.09031994]
[1625741956398,0.2581151,32479.0,32475.0,0.09032419]
[1625741956543,0.08609565,32479.0,32475.0,0.09032419]
[1625741956846,0.08617222,32478.0,32476.0,0.09039803]
[1625741957143,0.08617222,32478.0,32475.0,0.09039946]
[1625741957144,0.2582925,32478.0,32475.0,0.09039946]
[1625741957294,0.08617222,32478.0,32475.0,0.27119799]
[1625741957596,0.25830454,32479.0,32475.0,0.27119799]
[1625741958496,0.08616028,32478.0,32476.0,0.09038769]
[1625741958945,0.17216378,32479.0,32476.0,0.09038769]
[1625741958946,0.25832518,32479.0,32476.0,0.09038769]
[1625741959545,0.25832518,32479.0,32475.0,0.27116047]
[1625741959697,0.25814477,32478.0,32474.0,0.27108879]
[1625741959922,0.25801098,32476.0,32473.0,0.09036338]
[1625741960222,0.2580692,32477.0,32473.0,0.27109058]
[1625741960902,0.08605103,32476.0,32473.0,0.09036338]
[1625741961048,0.08605103,32476.0,32472.0,0.27110023]
[1625741961049,0.25798133,32476.0,32472.0,0.27110023]
[1625741961200,0.08605103,32476.0,32473.0,0.27110512]
[1625741961502,0.2579821,32476.0,32472.0,0.27110791]
[1625741961726,0.2579821,32476.0,32471.0,0.27098544]
[1625741962026,0.08605103,32476.0,32472.0,0.09032817]
[1625741962178,0.25790404,32476.0,32472.0,0.09032817]
[1625741962627,0.08605103,32476.0,32472.0,0.09032817]
[1625741963602,0.08605103,32476.0,32471.0,0.09029071]
[1625741963827,0.25774944,32476.0,32471.0,0.09029071]
[1625741964128,0.08605103,32476.0,32471.0,0.09029071]
[1625741964279,0.08605103,32476.0,32469.0,0.27088176]
[1625741964280,0.08588043,32474.0,32469.0,0.27088176]
[1625741964431,0.36376043,32474.0,32469.0,0.27088176]
[1625741964581,0.36376043,32474.0,32469.0,0.09029392]
[1625741965032,0.53528393,32474.0,32468.0,0.27087809]
[1625741965631,0.0919,32473.0,32468.0,0.27087809]
[1625741965932,0.27788,32474.0,32468.0,0.27087809]
[1625741966084,0.36368263,32474.0,32468.0,0.09029129]
[1625741966307,0.27788,32474.0,32468.0,0.09029129]
[1625741966612,0.36368275,32474.0,32468.0,0.09029129]
[1625741966913,0.0911,32473.0,32468.0,0.09029129]
[1625741967063,0.0911,32473.0,32468.0,0.27079261]
[1625741967517,0.0911,32473.0,32468.0,0.09029129]
[1625741968490,0.0911,32473.0,32467.0,0.2706212]
[1625741969541,0.0911,32473.0,32467.0,0.09019863]
[1625741970440,0.0911,32473.0,32467.0,0.27052637]
[1625741971042,0.0911,32473.0,32467.0,0.09019863]
[1625741971654,0.0911,32473.0,32465.0,0.27036428]
[1625741971943,0.0911,32473.0,32466.0,0.27036597]
[1625741972470,0.0911,32473.0,32466.0,0.09012199]
[1625741972619,0.0911,32473.0,32465.0,0.27035492]
[1625741973070,0.0911,32473.0,32466.0,0.09010734]
[1625741973671,0.0911,32473.0,32465.0,0.27032915]
[1625741974063,0.0911,32473.0,32465.0,0.09008274]
[1625741974576,0.0911,32473.0,32464.0,0.27024601]
[1625741975024,0.0911,32473.0,32465.0,0.09007255]
[1625741975475,0.0911,32473.0,32464.0,0.27024577]
[1625741976454,0.0911,32473.0,32465.0,0.09004926]
[1625741976910,0.0911,32473.0,32465.0,0.27012207]
[1625741977558,0.0911,32473.0,32465.0,0.09004926]
[1625741977707,0.25664747,32477.0,32465.0,0.09004926]
[1625741977967,0.08566665,32479.0,32467.0,0.27004819]
[1625741978102,0.34963761,32480.0,32468.0,0.0900149]
[1625741978252,0.25683761,32480.0,32468.0,0.3921549]
[1625741978778,0.0181943,32479.0,32468.0,0.3921549]
[1625741978927,0.0856753,32480.0,32468.0,0.57215893]
[1625741979601,0.0921,32479.0,32468.0,0.57215893]
[1625741980278,0.0921,32479.0,32468.0,0.3921549]
[1625741980880,0.01819461,32478.0,32469.0,0.00363892]
[1625741982084,0.29756461,32478.0,32469.0,0.00363892]
[1625741982382,0.01819466,32477.0,32469.0,0.00363892]
[1625741984559,0.0181945,32478.0,32469.0,0.00363892]
[1625741986812,0.27558935,32478.0,32469.0,0.00363892]
[1625741987111,0.27558935,32478.0,32468.0,0.00363906]
[1625741987273,0.01819547,32477.0,32470.0,0.00363909]
[1625741987562,0.01819547,32477.0,32468.0,0.00363907]
[1625741987716,0.32732547,32477.0,32468.0,0.00363907]
[1625741987863,0.30913,32477.0,32471.0,0.00363912]
[1625741988167,0.01819543,32476.0,32469.0,0.00363909]
[1625741988389,0.01819543,32476.0,32472.0,0.00363907]
[1625741988689,0.01819543,32476.0,32468.0,0.00363935]
[1625741988690,0.10386288,32476.0,32468.0,0.00363935]
[1625741988989,0.01819632,32475.0,32466.0,0.00363926]
[1625741989288,0.01819632,32475.0,32465.0,0.09007341]
[1625741989438,0.01819632,32475.0,32465.0,0.03737341]
[1625741989593,0.01819632,32475.0,32463.0,1.26103952]
[1625741989594,0.1892384,32475.0,32463.0,0.17476081]
[1625741989738,0.22563375,32475.0,32463.0,0.17476081]
[1625741989888,0.22563375,32475.0,32460.0,1.26107707]
[1625741989889,0.51248556,32474.0,32460.0,1.26107707]
[1625741990039,0.0936,32473.0,32464.0,0.0036396]
[1625741990188,0.0936,32473.0,32464.0,0.0005396]
[1625741990339,0.0936,32473.0,32461.0,0.00363959]
[1625741990340,0.01819795,32472.0,32461.0,0.00363959]
[1625741990639,0.01819795,32472.0,32465.0,0.00363965]
[1625741990940,0.01819795,32472.0,32462.0,0.00363965]
[1625741991091,0.01819795,32472.0,32466.0,0.00363965]
[1625741991390,0.01819795,32472.0,32461.0,0.0036397]
[1625741991690,0.01819795,32472.0,32459.0,1.05204318]
[1625741991849,0.01819795,32472.0,32458.0,1.08120298]
[1625741991850,0.51203956,32471.0,32458.0,0.54063615]
[1625741991990,0.51203956,32471.0,32456.0,1.0812723]
[1625741991991,1.53530997,32471.0,32460.0,0.00364002]
[1625741992143,1.53530997,32471.0,32468.0,4.1392]
[1625741992144,0.51172046,32469.0,32468.0,4.1392]
[1625741992291,0.77547046,32469.0,32468.0,4.1392]
[1625741992440,0.79367163,32469.0,32468.0,4.1392]
[1625741992593,0.79367163,32469.0,32468.0,4.0873]
[1625741992742,0.79367163,32469.0,32455.0,0.5406817]
[1625741992743,1.81710741,32469.0,32455.0,0.5406817]
[1625741993043,0.51167031,32467.0,32456.0,0.00364031]
[1625741993495,0.51167031,32467.0,32456.0,4.031e-05]
[1625741993642,0.01820212,32466.0,32455.0,0.00364042]
[1625741993793,0.01820212,32466.0,32465.0,4.3173]
[1625741993943,0.01820212,32466.0,32465.0,2.3162]
[1625741994096,0.01820212,32466.0,32465.0,0.3151]
[1625741994246,0.01820212,32466.0,32465.0,0.3075]
[1625741994398,0.01820212,32466.0,32465.0,0.199]
[1625741994546,0.01820212,32466.0,32465.0,0.169]
[1625741995147,0.01820212,32466.0,32465.0,0.1291]
[1625741995897,0.01820212,32466.0,32465.0,0.0668]
[1625741996349,0.52949317,32466.0,32465.0,0.05]
[1625741996647,0.52949317,32466.0,32465.0,0.0034]
[1625741999879,0.51129105,32466.0,32465.0,0.0034]
[1625742000027,0.51193336,32467.0,32465.0,0.0034]
[1625742000178,0.01820361,32466.0,32465.0,0.0034]
[1625742000327,0.53006293,32466.0,32465.0,0.0034]
[1625742000482,0.87136375,32466.0,32465.0,0.0034]
[1625742000628,0.85316014,32466.0,32465.0,0.0034]
[1625742000938,0.34130082,32466.0,32465.0,0.0034]
[1625742001681,0.85366625,32466.0,32465.0,0.0034]
[1625742002206,0.0925,32465.0,32457.0,0.18282223]
[1625742002355,0.0925,32465.0,32457.0,0.72434128]
[1625742002655,0.0925,32465.0,32458.0,0.54150066]
[1625742002954,0.0925,32465.0,32457.0,0.54151268]
[1625742003104,0.30909,32465.0,32457.0,0.54151268]
[1625742003862,0.30909,32465.0,32459.0,0.54181442]
[1625742004155,0.30909,32465.0,32458.0,0.54182613]
[1625742004756,0.30909,32465.0,32459.0,0.54180726]
[1625742004906,0.30909,32465.0,32464.0,4.0182]
[1625742005059,0.30909,32465.0,32464.0,3.8832]
[1625742005226,0.30909,32465.0,32457.0,0.45303984]
[1625742005402,0.30909,32465.0,32455.0,0.04916153]
[1625742005403,0.83980072,32465.0,32455.0,0.04916153]
[1625742005538,0.83980072,32465.0,32452.0,1.25836661]
[1625742005657,0.51214838,32460.0,32452.0,0.28376661]
[1625742005863,0.51214838,32460.0,32448.0,0.02522027]
[1625742005983,0.51140909,32455.0,32445.0,1.01527518]
[1625742006227,1.02138852,32452.0,32442.0,0.54232531]
[1625742006746,0.51077936,32450.0,32442.0,0.44452531]
[1625742006793,0.51077936,32450.0,32440.0,1.08105061]
[1625742006794,1.02029105,32448.0,32440.0,1.08105061]
[1625742006835,1.02029105,32448.0,32438.0,0.54239074]
[1625742006836,0.51023054,32447.0,32438.0,0.54239074]
[1625742006916,0.51023054,32447.0,32437.0,0.54250718]
[1625742006917,0.51003716,32445.0,32437.0,0.54250718]
[1625742006951,0.51003716,32445.0,32437.0,0.37940718]
[1625742007548,1.0,32444.0,32437.0,0.25460718]
[1625742007574,0.5,32443.0,32429.0,1.55192153]
[1625742007618,1.0,32442.0,32429.0,1.50592153]
[1625742007640,1.0,32442.0,32429.0,0.21466528]
[1625742007641,0.50873055,32438.0,32429.0,0.21466528]
[1625742007676,0.27957,32438.0,32421.0,3.3264]
[1625742007922,0.27957,32438.0,32421.0,2.9704]
[1625742007946,1.0,32435.0,32421.0,2.2654]
[1625742008058,1.5,32435.0,32420.0,0.02799583]
[1625742008206,1.0,32431.0,32405.0,0.057]
[1625742008359,0.5,32430.0,32402.0,0.0916]
[1625742008507,0.5,32430.0,32417.0,4.2449]
[1625742008674,0.5,32430.0,32417.0,2.1619]
[1625742008811,1.0,32427.0,32417.0,1.8539]
[1625742008959,0.2624,32431.0,32417.0,1.3799]
[1625742009106,0.7624,32431.0,32417.0,1.2596]
[1625742009258,1.0,32429.0,32417.0,1.1599]
[1625742009407,1.0,32429.0,32417.0,1.1074]
[1625742009556,1.0,32430.0,32417.0,1.0318]
[1625742009706,1.5,32430.0,32417.0,0.9614]
[1625742009856,1.0,32429.0,32417.0,0.9171]
[1625742010006,1.5,32429.0,32417.0,0.8976]
[1625742010160,1.0,32428.0,32398.0,0.17]
[1625742010310,0.5,32428.0,32423.0,4.7383]
[1625742010457,0.5,32428.0,32423.0,4.2382]
[1625742010608,2.52118895,32427.0,32423.0,4.1159]
[1625742010758,0.0928,32426.0,32423.0,3.4741]
[1625742010907,1.0,32424.0,32423.0,3.2413]
[1625742011058,1.76752,32424.0,32423.0,2.9884]
[1625742011207,1.76752,32424.0,32423.0,2.7909]
[1625742011358,1.76752,32424.0,32423.0,2.0666]
[1625742011512,1.76752,32424.0,32423.0,1.9994]
[1625742011659,1.76752,32424.0,32423.0,1.9465]
[1625742011807,1.76752,32424.0,32423.0,1.776]
[1625742011957,1.76752,32424.0,32423.0,1.746]
[1625742012108,1.26752,32424.0,32423.0,1.746]
[1625742012261,0.26752,32424.0,32423.0,1.6673]
[1625742012408,0.0928,32426.0,32423.0,1.6673]
[1625742012709,0.5928,32426.0,32423.0,1.6673]
[1625742012859,1.0,32425.0,32423.0,1.6673]
[1625742013162,0.0928,32426.0,32423.0,1.6673]
[1625742013308,0.0928,32426.0,32423.0,1.5118]
[1625742013459,1.0928,32426.0,32423.0,1.4658]
[1625742013609,1.0928,32426.0,32423.0,0.9227]
[1625742013758,1.0,32425.0,32423.0,0.9227]
[1625742013909,0.0928,32426.0,32423.0,0.9227]
[1625742014210,1.51302628,32424.0,32423.0,0.9227]
[1625742014509,0.0928,32426.0,32423.0,0.9227]
[1625742015263,0.0928,32426.0,32423.0,0.848]
[1625742015412,1.514837,32424.0,32423.0,0.848]
[1625742015601,1.514837,32424.0,32423.0,0.8442]
[1625742015895,1.51518764,32431.0,32423.0,0.8442]
[1625742016168,0.5055314,32425.0,32423.0,0.8442]
[1625742016467,1.01089436,32427.0,32423.0,0.8442]
[1625742016609,1.51625731,32433.0,32423.0,0.8442]
[1625742017211,0.5055468,32431.0,32423.0,0.8442]
[1625742017510,0.0922,32434.0,32423.0,0.8442]
[1625742017812,1.51630347,32439.0,32423.0,0.8442]
[1625742018313,2.01630347,32439.0,32402.0,0.057]
[1625742018456,1.0,32431.0,32395.0,0.9007]
[1625742018614,1.21749,32431.0,32395.0,0.9007]
[1625742018715,1.0,32430.0,32395.0,0.9007]
[1625742018862,0.5,32429.0,32395.0,0.9007]
[1625742019012,1.0,32422.0,32395.0,0.9007]
[1625742019164,1.31887,32422.0,32395.0,0.9007]
[1625742019312,0.31887,32422.0,32395.0,0.9007]
[1625742020214,0.41047,32422.0,32395.0,0.9007]
[1625742020515,1.00641665,32418.0,32395.0,0.9007]
[1625742020666,0.50329218,32416.0,32395.0,0.9007]
[1625742020965,0.5,32415.0,32386.0,2.56676752]
[1625742021127,0.8032,32415.0,32385.0,4.90986752]
[1625742021362,1.0,32400.0,32385.0,4.43276752]
[1625742021465,1.27269,32400.0,32385.0,3.90396752]
[1625742021897,0.5,32399.0,32385.0,2.22496752]
[1625742021920,0.5,32399.0,32385.0,1.95846752]
[1625742021977,1.0,32395.0,32385.0,1.77626752]
[1625742022107,0.5,32394.0,32381.0,1.7377528]
[1625742022170,1.0,32389.0,32381.0,1.6557528]
[1625742022317,0.3305,32389.0,32370.0,1.25972169]
[1625742022618,0.3305,32389.0,32370.0,1.15662169]
[1625742022767,0.3305,32389.0,32363.0,1.4398434]
[1625742023260,0.3305,32389.0,32360.0,0.34]
[1625742023373,0.0934,32388.0,32360.0,0.34]
[1625742023678,0.0934,32388.0,32360.0,0.1799]
[1625742024124,1.0,32381.0,32360.0,0.1799]
[1625742024268,0.34389,32381.0,32360.0,0.1799]
[1625742024418,0.34389,32381.0,32360.0,0.0432]
[1625742024568,1.0,32373.0,32360.0,0.0382]
[1625742024719,1.0,32373.0,32338.0,0.057]
[1625742024720,1.35136,32373.0,32330.0,0.9418]
[1625742024870,0.35136,32373.0,32330.0,0.9418]
[1625742025021,0.35136,32373.0,32338.0,1.42996121]
[1625742025472,0.35136,32373.0,32337.0,1.43001111]
[1625742025922,0.0938,32372.0,32334.0,1.42961889]
[1625742026071,0.35136,32373.0,32336.0,1.0]
[1625742026240,0.35136,32373.0,32334.0,1.42961889]
[1625742026823,1.0,32371.0,32330.0,2.37147799]
[1625742026972,1.0,32371.0,32330.0,0.9418]
[1625742027122,0.0936,32372.0,32330.0,0.9418]
[1625742027425,1.35136,32373.0,32330.0,0.9418]
[1625742027722,1.0,32372.0,32330.0,0.9418]
[1625742027874,0.0916,32378.0,32330.0,0.9418]
[1625742027875,1.0,32376.0,32330.0,0.9418]
[1625742028025,1.0,32376.0,32348.0,7.99707]
[1625742028172,1.0,32380.0,32348.0,7.99707]
[1625742028524,1.43,32402.0,32348.0,7.99707]
[1625742028624,0.19745553,32401.0,32392.0,4.4092]
[1625742028773,0.4928,32400.0,32392.0,4.4092]
[1625742029074,2.79976316,32393.0,32392.0,4.3971]
[1625742029225,2.79976316,32393.0,32392.0,2.91196105]
[1625742029374,0.9928,32400.0,32392.0,2.26436105]
[1625742029524,1.0,32393.0,32392.0,1.87106105]
[1625742029674,1.0,32393.0,32392.0,1.68846105]
[1625742029825,2.47430641,32393.0,32392.0,0.74208028]
[1625742029976,2.47430641,32393.0,32392.0,0.63408028]
[1625742030126,2.47430641,32393.0,32365.0,0.26012]
[1625742030277,2.47430641,32393.0,32365.0,0.22152]
[1625742030428,1.24495,32393.0,32365.0,0.22152]
[1625742030580,1.24495,32393.0,32350.0,0.9277]
[1625742030882,1.24495,32393.0,32391.0,5.2828]
[1625742031040,0.24495,32393.0,32391.0,5.2828]
[1625742031184,1.0,32392.0,32391.0,5.2828]
[1625742031352,1.0,32392.0,32391.0,4.6765]
[1625742031487,1.093,32395.0,32391.0,4.6765]
[1625742031778,1.093,32395.0,32391.0,4.574]
[1625742031779,1.0,32394.0,32391.0,4.574]
[1625742031938,0.49151468,32392.0,32391.0,4.20881308]
[1625742032079,0.093,32395.0,32391.0,4.17131308]
[1625742032231,0.093,32395.0,32391.0,4.14651308]
[1625742032381,0.093,32395.0,32391.0,4.44972308]